[Event "Chessity Nationale Pupillendag 2019 - Groep F"]
[Site "Meppel, Netherlands"]
[Date "2019.06.29"]
[Round "5.6"]
[White "Koorevaar, Sarah-Joy"]
[Black "Van Rijn, Vincent"]
[Result "0-1"]
[TimeControl "15 min + 10 sec"]
[WhiteElo "648"]
[BlackElo "779"]

1. e4 {[%clk 00:15:19]} {[%emt 00:16:01]} e5 {[%clk 00:15:20]} {[%emt
00:00:01]} 2. f4 {[%clk 00:15:28]} {[%emt 00:00:02]} exf4 {[%clk 00:15:34]}
{[%emt 00:00:05]} 3. Nf3 Nf6 {[%emt 00:00:03]} 4. Nc3 {[%clk 00:15:44]} Nc6
{[%clk 00:15:43]} {[%emt 00:00:01]} 5. d4 {[%clk 00:15:51]} {[%emt 00:00:03]}
d5 {[%clk 00:15:51]} {[%emt 00:00:03]} 6. e5 {[%clk 00:15:58]} {[%emt
00:00:03]} Ne4 {[%clk 00:15:50]} {[%emt 00:00:10]} 7. Bxf4 {[%clk 00:15:57]}
{[%emt 00:00:10]} Bb4 {[%clk 00:15:34]} {[%emt 00:00:27]} 8. Bd2 {[%clk
00:15:25]} {[%emt 00:00:43]} Bxc3 {[%clk 00:15:16]} {[%emt 00:00:28]} 9. Bxc3
{[%clk 00:15:31]} {[%emt 00:00:03]} Nxc3 {[%clk 00:15:24]} {[%emt 00:00:03]} 10.
bxc3 {[%clk 00:15:39]} {[%emt 00:00:02]} Bf5 {[%clk 00:15:23]} {[%emt
00:00:10]} 11. Bb5 {[%clk 00:15:45]} {[%emt 00:00:04]} Qd7 {[%clk 00:15:04]}
{[%emt 00:00:29]} 12. O-O {[%clk 00:15:51]} {[%emt 00:00:04]} a6 {[%clk
00:15:08]} {[%emt 00:00:07]} 13. Bxc6 {[%clk 00:15:58]} {[%emt 00:00:02]} Qxc6
{[%clk 00:15:16]} {[%emt 00:00:01]} 14. Ng5 {[%clk 00:15:24]} {[%emt 00:00:43]}
Bg6 {[%clk 00:15:07]} {[%emt 00:00:20]} 15. Qf3 {[%clk 00:14:57]} {[%emt
00:00:32]} O-O {[%clk 00:15:11]} {[%emt 00:00:12]} 16. Rf2 {[%clk 00:14:29]}
{[%emt 00:00:38]} f6 {[%emt 00:01:01]} 17. Nh3 {[%clk 00:13:48]} {[%emt
00:00:05]} fxe5 {[%clk 00:15:05]} {[%emt 00:00:10]} 18. Qg4 {[%clk 00:13:05]}
{[%emt 00:00:41]} Rxf2 {[%clk 00:14:59]} {[%emt 00:00:30]} 19. Nxf2 {[%clk
00:13:06]} {[%emt 00:00:09]} Qxc3 {[%clk 00:15:08]} {[%emt 00:00:02]} 20. Qe6+
{[%clk 00:13:06]} {[%emt 00:00:07]} Bf7 {[%clk 00:15:09]} {[%emt 00:00:11]} 21.
Qg4 {[%clk 00:10:45]} {[%emt 00:02:30]} Qxa1+ {[%clk 00:15:12]} {[%emt
00:00:09]} 22. Nd1 {[%clk 00:10:53]} {[%emt 00:00:02]} Qxd4+ {[%clk 00:15:15]}
{[%emt 00:00:07]} 23. Nf2 {[%clk 00:10:44]} {[%emt 00:00:18]} Qxg4 {[%clk
00:15:16]} {[%emt 00:00:10]} 24. Nxg4 {[%clk 00:10:53]} {[%emt 00:00:01]} Re8
{[%clk 00:15:23]} {[%emt 00:00:02]} 25. h3 {[%clk 00:10:59]} {[%emt 00:00:05]}
e4 {[%clk 00:15:33]} 26. Ne3 {[%clk 00:11:03]} {[%emt 00:00:06]} 0-1

[Event "Chessity Nationale Pupillendag 2019 - Groep F"]
[Site "Meppel, Netherlands"]
[Date "2019.06.29"]
[Round "6.1"]
[White "Sterk, Ralf"]
[Black "Grooten, Tommy"]
[Result "0-1"]
[TimeControl "15 min + 10 sec"]
[WhiteElo "962"]
[BlackElo "1318"]

1. e4 c5 2. c3 {[%clk 00:15:16]} {[%emt 00:00:02]} Nf6 {[%clk 00:15:17]} {[%emt
00:00:03]} 3. e5 {[%clk 00:15:24]} {[%emt 00:00:02]} Nd5 {[%clk 00:15:26]} 4.
d4 {[%clk 00:15:25]} {[%emt 00:00:10]} cxd4 {[%clk 00:15:35]} {[%emt 00:00:02]}
5. cxd4 {[%clk 00:15:32]} {[%emt 00:00:03]} e6 {[%clk 00:15:44]} {[%emt
00:00:02]} 6. Nf3 {[%clk 00:15:32]} {[%emt 00:00:09]} d6 {[%clk 00:15:53]}
{[%emt 00:00:02]} 7. Bc4 {[%clk 00:15:24]} {[%emt 00:00:17]} dxe5 {[%clk
00:16:01]} {[%emt 00:00:02]} 8. dxe5 {[%clk 00:15:26]} {[%emt 00:00:08]} Bb4+
{[%clk 00:16:04]} {[%emt 00:00:08]} 9. Bd2 {[%clk 00:15:20]} {[%emt 00:00:15]}
O-O {[%clk 00:15:57]} {[%emt 00:00:17]} 10. Bxd5 {[%clk 00:15:26]} {[%emt
00:00:05]} Bxd2+ {[%clk 00:16:05]} {[%emt 00:00:02]} 11. Nbxd2 {[%clk
00:15:32]} {[%emt 00:00:05]} Qxd5 {[%clk 00:16:12]} {[%emt 00:00:03]} 12. O-O
{[%clk 00:15:39]} {[%emt 00:00:03]} Nc6 {[%clk 00:16:21]} {[%emt 00:00:02]} 13.
Re1 {[%clk 00:15:43]} {[%emt 00:00:04]} b6 {[%clk 00:16:25]} {[%emt 00:00:08]}
14. Qe2 {[%clk 00:15:44]} {[%emt 00:00:08]} Bb7 {[%clk 00:16:26]} {[%emt
00:00:08]} 15. Rad1 {[%clk 00:15:48]} {[%emt 00:00:06]} Nd4 {[%clk 00:16:16]}
{[%emt 00:00:20]} 16. Nxd4 {[%clk 00:15:49]} {[%emt 00:00:09]} Qxg2# {[%clk
00:16:24]} {[%emt 00:00:02]} 0-1

[Event "Chessity Nationale Pupillendag 2019 - Groep F"]
[Site "Meppel, Netherlands"]
[Date "2019.06.29"]
[Round "6.2"]
[White "Heukelom, Aurelia"]
[Black "Vijver, Jonathan"]
[Result "0-1"]
[TimeControl "15 min + 10 sec"]
[WhiteElo "643"]
[BlackElo "948"]

1. d4 {[%clk 00:15:19]} f5 {[%clk 00:15:18]} {[%emt 00:00:02]} 2. c4 {[%clk
00:15:28]} {[%emt 00:00:01]} Nf6 {[%clk 00:15:27]} {[%emt 00:00:01]} 3. Nf3
{[%clk 00:15:36]} {[%emt 00:00:02]} e6 {[%clk 00:15:36]} {[%emt 00:00:01]} 4.
Nc3 {[%clk 00:15:45]} {[%emt 00:00:02]} Bb4 {[%clk 00:15:45]} {[%emt 00:00:01]}
5. Bd2 {[%clk 00:15:54]} {[%emt 00:00:01]} Nc6 {[%clk 00:15:53]} {[%emt
00:00:02]} 6. e3 {[%clk 00:16:02]} {[%emt 00:00:02]} d6 {[%clk 00:16:01]}
{[%emt 00:00:01]} 7. Bd3 {[%clk 00:16:10]} {[%emt 00:00:02]} Bxc3 8. Bxc3
{[%clk 00:16:18]} O-O {[%clk 00:16:15]} {[%emt 00:00:04]} 9. O-O {[%clk
00:16:26]} {[%emt 00:00:02]} a6 {[%clk 00:16:22]} {[%emt 00:00:03]} 10. Ng5
{[%clk 00:15:42]} {[%emt 00:00:54]} h6 {[%clk 00:16:30]} {[%emt 00:00:02]} 11.
Nf3 {[%clk 00:15:38]} {[%emt 00:00:13]} Kh8 {[%clk 00:16:29]} {[%emt 00:00:12]}
12. b4 {[%clk 00:15:00]} {[%emt 00:00:48]} Bd7 {[%clk 00:16:29]} {[%emt
00:00:10]} 13. b5 {[%clk 00:14:58]} {[%emt 00:00:12]} axb5 {[%clk 00:16:38]}
{[%emt 00:00:02]} 14. cxb5 {[%clk 00:15:06]} {[%emt 00:00:01]} Ne7 {[%clk
00:16:45]} {[%emt 00:00:03]} 15. d5 {[%clk 00:15:10]} {[%emt 00:00:07]} Nfxd5
{[%clk 00:16:03]} {[%emt 00:00:51]} 16. Bb2 {[%clk 00:15:09]} {[%emt 00:00:10]}
e5 {[%clk 00:16:06]} {[%emt 00:00:17]} 17. Bc4 {[%clk 00:15:20]} {[%emt
00:00:09]} Nb6 {[%clk 00:16:10]} {[%emt 00:00:05]} 18. Bb3 {[%clk 00:15:11]}
{[%emt 00:00:20]} Bxb5 {[%clk 00:16:09]} {[%emt 00:00:11]} 19. a4 {[%emt
00:00:28]} Bxf1 {[%emt 00:00:03]} 20. a5 {[%clk 00:14:27]} {[%emt 00:00:23]}
Nd7 {[%clk 00:16:10]} {[%emt 00:00:09]} 21. Qxf1 {[%clk 00:14:32]} {[%emt
00:00:04]} c6 {[%emt 00:00:20]} 22. Ba3 {[%clk 00:14:26]} {[%emt 00:00:05]} Qc7
{[%clk 00:16:07]} {[%emt 00:00:12]} 23. Qd1 {[%clk 00:14:31]} {[%emt 00:00:06]}
Rxa5 {[%clk 00:15:51]} {[%emt 00:00:27]} 24. Bxd6 {[%clk 00:14:27]} {[%emt
00:00:13]} Rxa1 {[%clk 00:16:00]} {[%emt 00:00:03]} 25. Bxc7 {[%clk 00:14:27]}
{[%emt 00:00:09]} Rxd1+ {[%clk 00:16:07]} {[%emt 00:00:02]} 26. Bxd1 {[%clk
00:14:36]} {[%emt 00:00:02]} e4 {[%clk 00:16:12]} {[%emt 00:00:06]} 27. Bd6
{[%clk 00:14:40]} {[%emt 00:00:06]} exf3 {[%clk 00:16:16]} {[%emt 00:00:06]} 28.
Bxe7 {[%clk 00:14:46]} {[%emt 00:00:04]} Re8 {[%clk 00:16:25]} 29. Ba3 {[%clk
00:14:48]} {[%emt 00:00:07]} fxg2 {[%clk 00:16:31]} {[%emt 00:00:05]} 30. Kxg2
{[%clk 00:14:57]} Ne5 {[%clk 00:16:21]} {[%emt 00:00:20]} 31. f4 {[%clk
00:15:01]} {[%emt 00:00:07]} Ng4 {[%clk 00:16:27]} {[%emt 00:00:03]} 32. Bxg4
{[%clk 00:15:08]} {[%emt 00:00:04]} fxg4 {[%clk 00:16:35]} {[%emt 00:00:02]} 33.
Kg3 {[%clk 00:15:16]} {[%emt 00:00:02]} Rxe3+ {[%clk 00:16:43]} {[%emt
00:00:03]} 34. Kxg4 {[%clk 00:15:24]} {[%emt 00:00:01]} Rxa3 {[%clk 00:16:53]}
{[%emt 00:00:01]} 35. h4 {[%clk 00:15:23]} {[%emt 00:00:11]} b5 {[%clk
00:17:01]} {[%emt 00:00:01]} 36. f5 {[%emt 00:00:04]} b4 37. h5 {[%clk
00:15:39]} b3 {[%clk 00:17:19]} {[%emt 00:00:02]} 38. f6 {[%clk 00:15:34]}
{[%emt 00:00:15]} gxf6 {[%clk 00:17:25]} {[%emt 00:00:04]} 39. Kf5 {[%clk
00:15:42]} {[%emt 00:00:01]} b2 {[%clk 00:17:33]} {[%emt 00:00:01]} 40. Kxf6
{[%clk 00:15:51]} {[%emt 00:00:02]} b1=Q {[%clk 00:17:39]} {[%emt 00:00:04]} 41.
Ke6 {[%clk 00:15:53]} {[%emt 00:00:07]} Rd3 {[%clk 00:17:45]} {[%emt 00:00:04]}
42. Ke5 {[%clk 00:16:00]} {[%emt 00:00:03]} Qe1+ {[%clk 00:17:53]} {[%emt
00:00:02]} 43. Kf6 {[%clk 00:16:08]} {[%emt 00:00:02]} Rf3+ {[%clk 00:18:01]}
{[%emt 00:00:02]} 44. Kg6 {[%clk 00:16:16]} {[%emt 00:00:02]} Qg1+ {[%clk
00:18:09]} {[%emt 00:00:02]} 45. Kxh6 {[%clk 00:16:23]} {[%emt 00:00:03]} Qg7#
{[%clk 00:18:16]} {[%emt 00:00:03]} 0-1

[Event "Chessity Nationale Pupillendag 2019 - Groep F"]
[Site "Meppel, Netherlands"]
[Date "2019.06.29"]
[Round "6.3"]
[White "Aubel, Daan"]
[Black "Smets, Cas"]
[Result "1-0"]
[TimeControl "15 min + 10 sec"]
[WhiteElo "859"]
[BlackElo "649"]

1. e4 {[%clk 00:15:19]} e5 {[%clk 00:15:19]} {[%emt 00:00:01]} 2. Nf3 {[%clk
00:15:27]} {[%emt 00:00:02]} Nc6 {[%clk 00:15:28]} {[%emt 00:00:01]} 3. Bb5
{[%clk 00:15:35]} {[%emt 00:00:02]} a6 {[%clk 00:15:32]} {[%emt 00:00:06]} 4.
Bxc6 {[%clk 00:15:43]} {[%emt 00:00:02]} bxc6 {[%clk 00:15:41]} 5. d3 {[%clk
00:15:50]} {[%emt 00:00:03]} Nf6 {[%emt 00:00:07]} 6. Nxe5 {[%emt 00:00:03]}
Bc5 {[%emt 00:00:10]} 7. Nd2 {[%emt 00:00:14]} d6 {[%clk 00:15:14]} {[%emt
00:00:03]} 8. Nxc6 {[%clk 00:15:40]} {[%emt 00:00:20]} Qd7 {[%clk 00:15:07]}
{[%emt 00:00:17]} 9. Na5 {[%clk 00:15:48]} {[%emt 00:00:03]} Ng4 {[%clk
00:15:12]} {[%emt 00:00:04]} 10. O-O {[%clk 00:15:43]} {[%emt 00:00:15]} Qe6
{[%clk 00:14:57]} {[%emt 00:00:25]} 11. Nf3 {[%clk 00:15:32]} {[%emt 00:00:20]}
Qf6 {[%clk 00:14:29]} {[%emt 00:00:33]} 12. d4 {[%clk 00:15:18]} {[%emt
00:00:31]} Bb6 {[%emt 00:00:06]} 13. Nb3 {[%emt 00:00:08]} O-O {[%clk
00:14:13]} {[%emt 00:00:13]} 14. h3 {[%clk 00:15:17]} Nh6 {[%emt 00:00:34]} 15.
e5 dxe5 {[%clk 00:13:30]} {[%emt 00:00:29]} 16. dxe5 {[%clk 00:15:24]} Qg6
{[%clk 00:13:31]} {[%emt 00:00:11]} 17. Kh1 {[%clk 00:15:22]} Bb7 {[%clk
00:12:34]} {[%emt 00:00:48]} 18. Bf4 {[%clk 00:15:19]} Rad8 {[%clk 00:12:29]}
{[%emt 00:00:55]} 19. Qe2 {[%clk 00:14:46]} Bd4 {[%clk 00:12:20]} {[%emt
00:01:07]} 20. Bxh6 {[%clk 00:14:29]} gxh6 {[%clk 00:12:23]} {[%emt 00:00:35]}
21. Nbxd4 {[%clk 00:14:20]} Rxd4 {[%clk 00:12:30]} {[%emt 00:00:21]} 22. c3
{[%clk 00:14:28]} Re4 {[%clk 00:12:25]} {[%emt 00:00:17]} 23. Qd1 {[%clk
00:14:24]} Rxe5 {[%clk 00:12:23]} {[%emt 00:00:26]} 24. Rg1 {[%clk 00:14:30]}
Rd5 {[%clk 00:12:05]} {[%emt 00:00:30]} 25. Qe2 {[%clk 00:14:25]} Rdd8 {[%emt
00:00:32]} 26. Rad1 Kh8 {[%clk 00:11:58]} 27. Rxd8 {[%clk 00:14:30]} Rxd8
{[%clk 00:11:21]} {[%emt 00:01:54]} 28. Qe5+ {[%clk 00:13:56]} Kg8 {[%emt
00:00:21]} 29. Qxc7 Re8 {[%clk 00:10:16]} {[%emt 00:00:56]} 30. Qxb7 {[%clk
00:13:51]} Re2 {[%clk 00:10:23]} {[%emt 00:00:20]} 31. Rf1 {[%clk 00:12:38]} a5
{[%clk 00:10:09]} {[%emt 00:01:47]} 32. Qb5 {[%clk 00:12:16]} Rc2 {[%emt
00:00:40]} 33. h4 Rd2 {[%clk 00:09:42]} {[%emt 00:00:04]} 34. Nxd2 Qd6 {[%clk
00:09:42]} 35. Re1 Qxd2 {[%clk 00:09:42]} 36. Re8+ Kg7 {[%clk 00:09:42]} 37.
Qe5+ {[%clk 00:11:51]} f6 {[%clk 00:09:42]} 38. Qg3+ {[%clk 00:11:51]} Kf7
{[%clk 00:09:42]} 39. Qg8# {[%clk 00:11:51]} 1-0

[Event "Chessity Nationale Pupillendag 2019 - Groep F"]
[Site "Meppel, Netherlands"]
[Date "2019.06.29"]
[Round "6.4"]
[White "Van Rijn, Vincent"]
[Black "Kurt, Sascha"]
[Result "1/2-1/2"]
[TimeControl "15 min + 10 sec"]
[WhiteElo "779"]
[BlackElo "789"]

1. e4 {[%clk 00:15:18]} {[%emt 00:01:44]} e5 {[%emt 00:00:04]} 2. Nf3 {[%clk
00:15:28]} Nc6 {[%emt 00:00:09]} 3. d4 {[%emt 00:00:01]} exd4 4. Nxd4 Bc5
{[%clk 00:15:08]} {[%emt 00:00:22]} 5. Nb3 {[%clk 00:15:57]} {[%emt 00:00:01]}
Bb6 {[%clk 00:15:02]} {[%emt 00:00:16]} 6. Nc3 {[%clk 00:16:06]} {[%emt
00:00:01]} Qf6 {[%clk 00:14:43]} {[%emt 00:00:29]} 7. f3 {[%clk 00:16:00]}
{[%emt 00:00:15]} Qh4+ {[%clk 00:14:38]} {[%emt 00:00:15]} 8. g3 {[%clk
00:16:09]} {[%emt 00:00:02]} Qf6 {[%clk 00:14:42]} {[%emt 00:00:05]} 9. Nd5
{[%clk 00:16:11]} {[%emt 00:00:08]} Qd6 {[%clk 00:14:41]} {[%emt 00:00:11]} 10.
Bf4 {[%clk 00:16:18]} {[%emt 00:00:03]} Qg6 {[%clk 00:14:36]} {[%emt 00:00:15]}
11. Nxc7+ {[%clk 00:16:14]} {[%emt 00:00:14]} Bxc7 {[%clk 00:14:45]} {[%emt
00:00:01]} 12. Bxc7 {[%clk 00:16:22]} {[%emt 00:00:02]} d6 {[%clk 00:14:40]}
{[%emt 00:00:15]} 13. Bxd6 {[%clk 00:16:11]} {[%emt 00:00:20]} Nge7 {[%clk
00:14:08]} {[%emt 00:00:43]} 14. Bd3 {[%clk 00:16:05]} {[%emt 00:00:16]} Qxd6
{[%clk 00:14:12]} {[%emt 00:00:06]} 15. f4 {[%clk 00:15:54]} {[%emt 00:00:21]}
O-O {[%clk 00:13:37]} {[%emt 00:00:46]} 16. e5 {[%clk 00:15:51]} {[%emt
00:00:12]} Qd5 {[%clk 00:13:29]} {[%emt 00:00:17]} 17. Rf1 {[%clk 00:15:38]}
{[%emt 00:00:23]} Nb4 {[%clk 00:13:31]} {[%emt 00:00:09]} 18. Nd4 {[%clk
00:14:55]} {[%emt 00:00:54]} Qxd4 {[%clk 00:13:35]} {[%emt 00:00:06]} 19. Bxh7+
{[%clk 00:15:02]} {[%emt 00:00:02]} Kxh7 {[%clk 00:13:41]} {[%emt 00:00:04]} 20.
Qxd4 {[%clk 00:15:10]} {[%emt 00:00:02]} Nxc2+ {[%clk 00:13:50]} {[%emt
00:00:01]} 21. Kf2 {[%clk 00:15:02]} {[%emt 00:00:17]} Nxd4 {[%clk 00:13:58]}
{[%emt 00:00:02]} 22. Rfd1 {[%clk 00:15:12]} Ndf5 {[%clk 00:14:00]} {[%emt
00:00:08]} 23. g4 {[%clk 00:15:20]} {[%emt 00:00:02]} Nh4 {[%clk 00:14:04]}
{[%emt 00:00:05]} 24. Kg3 {[%clk 00:15:20]} {[%emt 00:00:10]} Nhg6 {[%clk
00:14:09]} {[%emt 00:00:04]} 25. h4 {[%clk 00:15:20]} {[%emt 00:00:11]} Rh8
{[%clk 00:13:59]} {[%emt 00:00:20]} 26. h5 {[%clk 00:15:21]} {[%emt 00:00:09]}
Nf8 {[%clk 00:14:07]} {[%emt 00:00:02]} 27. Rh1 {[%clk 00:15:20]} {[%emt
00:00:10]} Kg8 {[%clk 00:14:14]} {[%emt 00:00:03]} 28. g5 {[%clk 00:15:19]}
{[%emt 00:00:11]} g6 {[%clk 00:14:22]} {[%emt 00:00:03]} 29. h6 {[%clk
00:15:11]} {[%emt 00:00:18]} Nf5+ {[%clk 00:14:24]} {[%emt 00:00:08]} 30. Kf2
{[%clk 00:15:11]} {[%emt 00:00:10]} Ne6 {[%emt 00:00:08]} 31. Rad1 {[%clk
00:14:47]} {[%emt 00:00:32]} b6 {[%clk 00:14:22]} {[%emt 00:00:16]} 32. Rh2
{[%clk 00:13:48]} {[%emt 00:01:08]} Bb7 {[%clk 00:14:11]} {[%emt 00:00:22]} 33.
Rd7 {[%clk 00:13:36]} {[%emt 00:00:21]} Bc6 {[%clk 00:14:08]} {[%emt 00:00:13]}
34. h7+ {[%clk 00:12:54]} {[%emt 00:00:52]} Kg7 {[%clk 00:14:00]} {[%emt
00:00:17]} 35. Rd3 {[%clk 00:12:32]} {[%emt 00:00:31]} Rxh7 {[%clk 00:14:07]}
{[%emt 00:00:05]} 36. Rxh7+ {[%clk 00:12:26]} {[%emt 00:00:15]} Kxh7 {[%clk
00:14:15]} {[%emt 00:00:01]} 37. Rh3+ {[%clk 00:12:33]} {[%emt 00:00:02]} Kg7
{[%clk 00:14:23]} {[%emt 00:00:03]} 38. Ke1 {[%clk 00:12:18]} {[%emt 00:00:54]}
Nxf4 {[%clk 00:14:39]} {[%emt 00:00:05]} 39. Rc3 {[%clk 00:12:15]} {[%emt
00:00:14]} Bd5 {[%clk 00:14:44]} {[%emt 00:00:05]} 40. b3 {[%clk 00:12:02]}
{[%emt 00:00:23]} Re8 {[%clk 00:14:46]} {[%emt 00:00:08]} 41. Kd2 {[%clk
00:11:34]} {[%emt 00:00:37]} Rxe5 {[%clk 00:14:50]} {[%emt 00:00:06]} 42. Rc7
{[%clk 00:11:29]} {[%emt 00:00:15]} Re2+ {[%clk 00:14:53]} {[%emt 00:00:07]} 43.
Kc3 {[%clk 00:11:24]} {[%emt 00:00:15]} Be6 {[%clk 00:14:37]} {[%emt 00:00:26]}
44. Rxa7 {[%clk 00:11:19]} {[%emt 00:00:15]} Nd5+ {[%clk 00:14:43]} {[%emt
00:00:04]} 45. Kd3 {[%clk 00:11:17]} {[%emt 00:00:11]} Re3+ {[%clk 00:14:45]}
{[%emt 00:00:09]} 46. Kd2 {[%clk 00:11:20]} {[%emt 00:00:06]} Nb4 {[%clk
00:14:50]} {[%emt 00:00:05]} 47. a3 {[%clk 00:11:06]} {[%emt 00:00:24]} Nc6
{[%clk 00:14:53]} {[%emt 00:00:06]} 48. Rc7 {[%clk 00:11:03]} {[%emt 00:00:14]}
Rxb3 {[%clk 00:14:30]} {[%emt 00:00:34]} 49. Rxc6 {[%clk 00:11:01]} {[%emt
00:00:11]} Rxa3 {[%clk 00:14:36]} {[%emt 00:00:05]} 50. Rxb6 {[%clk 00:11:08]}
{[%emt 00:00:02]} Ra2+ {[%clk 00:14:43]} {[%emt 00:00:03]} 51. Kc3 {[%clk
00:11:05]} {[%emt 00:00:12]} Rg2 {[%clk 00:14:50]} {[%emt 00:00:04]} 52. Kd3
{[%clk 00:10:50]} {[%emt 00:00:25]} Rxg5 {[%clk 00:14:54]} {[%emt 00:00:06]} 53.
Ke4 {[%clk 00:10:56]} {[%emt 00:00:03]} Rg4+ {[%clk 00:14:56]} {[%emt
00:00:08]} 54. Kf3 {[%clk 00:10:50]} {[%emt 00:00:16]} Rc4 {[%clk 00:14:51]}
{[%emt 00:00:16]} 55. Ke2 {[%clk 00:10:36]} {[%emt 00:00:25]} g5 {[%clk
00:14:58]} {[%emt 00:00:03]} 56. Kf3 {[%clk 00:09:44]} {[%emt 00:01:01]} Rc6
{[%clk 00:14:54]} {[%emt 00:00:15]} 57. Rb4 {[%clk 00:09:05]} {[%emt 00:00:49]}
Bd5+ {[%clk 00:14:59]} {[%emt 00:00:05]} 58. Kg4 {[%clk 00:08:55]} {[%emt
00:00:19]} Rc4+ {[%clk 00:14:50]} {[%emt 00:00:20]} 59. Rxc4 {[%clk 00:08:45]}
{[%emt 00:00:20]} Ne3+ {[%clk 00:14:59]} {[%emt 00:00:01]} 60. Kxg5 {[%clk
00:08:46]} {[%emt 00:00:09]} f6+ {[%clk 00:15:00]} {[%emt 00:00:10]} 61. Kf4
{[%clk 00:08:49]} {[%emt 00:00:06]} Nxc4 {[%clk 00:15:09]} {[%emt 00:00:02]} 62.
Kf5 {[%clk 00:08:55]} {[%emt 00:00:04]} Ne3+ {[%clk 00:15:17]} 63. Kf4 {[%clk
00:08:57]} {[%emt 00:00:09]} Kg6 64. Kxe3 {[%clk 00:08:51]} Kg5 {[%clk
00:15:33]} {[%emt 00:00:01]} 65. Kd4 {[%clk 00:08:47]} {[%emt 00:00:14]} Kg4
{[%clk 00:15:40]} {[%emt 00:00:04]} 66. Kxd5 {[%clk 00:08:32]} {[%emt
00:00:24]} Kg3 {[%clk 00:15:45]} {[%emt 00:00:05]} 67. Ke6 {[%emt 00:00:13]}
1/2-1/2

[Event "Chessity Nationale Pupillendag 2019 - Groep F"]
[Site "Meppel, Netherlands"]
[Date "2019.06.29"]
[Round "6.6"]
[White "Pereira Garza, Cecilia"]
[Black "Koorevaar, Sarah-Joy"]
[Result "1-0"]
[TimeControl "15 min + 10 sec"]
[WhiteElo "929"]
[BlackElo "648"]

1. d4 {[%clk 00:15:17]} {[%emt 00:00:01]} Nf6 {[%clk 00:15:19]} {[%emt
00:00:02]} 2. c4 {[%clk 00:15:24]} {[%emt 00:00:03]} e6 {[%clk 00:15:13]}
{[%emt 00:00:17]} 3. Nc3 {[%clk 00:15:24]} {[%emt 00:00:10]} Bb4 {[%clk
00:15:21]} {[%emt 00:00:02]} 4. Nf3 {[%clk 00:15:24]} {[%emt 00:00:11]} Ne4
{[%clk 00:15:28]} {[%emt 00:00:02]} 5. Bd2 {[%clk 00:15:27]} {[%emt 00:00:07]}
Nxd2 {[%clk 00:15:23]} {[%emt 00:00:15]} 6. Qxd2 {[%clk 00:15:29]} {[%emt
00:00:07]} O-O {[%clk 00:15:27]} {[%emt 00:00:07]} 7. e3 {[%clk 00:15:25]}
{[%emt 00:00:12]} Nc6 {[%clk 00:15:04]} {[%emt 00:00:35]} 8. Bd3 {[%clk
00:15:09]} Re8 {[%clk 00:14:56]} {[%emt 00:00:44]} 9. O-O-O {[%clk 00:14:55]}
b6 {[%clk 00:14:50]} {[%emt 00:00:40]} 10. Kb1 {[%clk 00:14:54]} Bb7 {[%clk
00:14:58]} {[%emt 00:00:12]} 11. h4 {[%clk 00:14:54]} e5 {[%clk 00:14:39]}
{[%emt 00:00:40]} 12. d5 {[%clk 00:14:29]} Nd4 {[%clk 00:14:40]} {[%emt
00:00:43]} 13. e4 {[%clk 00:14:08]} {[%emt 00:00:02]} d6 {[%clk 00:14:24]}
{[%emt 00:00:56]} 14. Rh3 {[%clk 00:13:55]} Bc8 {[%clk 00:14:32]} {[%emt
00:00:24]} 15. h5 {[%clk 00:14:00]} Nxf3 {[%clk 00:14:07]} {[%emt 00:00:39]} 16.
gxf3 {[%clk 00:13:56]} Rb8 {[%clk 00:12:58]} {[%emt 00:01:35]} 17. Rg3 {[%clk
00:13:56]} g6 {[%clk 00:12:06]} {[%emt 00:01:11]} 18. Qh6 {[%emt 00:00:03]} g5
19. hxg6 {[%clk 00:13:58]} fxg6 {[%clk 00:11:46]} {[%emt 00:00:31]} 20. Rh1
{[%clk 00:13:50]} {[%emt 00:00:18]} Re7 {[%clk 00:11:47]} {[%emt 00:00:10]} 21.
Rhg1 {[%clk 00:11:10]} {[%emt 00:02:49]} Rg7 {[%clk 00:11:00]} {[%emt
00:00:58]} 22. Ne2 {[%clk 00:10:32]} {[%emt 00:00:47]} Bc5 {[%clk 00:10:47]}
{[%emt 00:00:24]} 23. R1g2 {[%clk 00:10:28]} {[%emt 00:00:11]} Qf6 {[%clk
00:09:17]} {[%emt 00:01:41]} 24. f4 {[%clk 00:10:19]} {[%emt 00:00:20]} Bb7
{[%clk 00:08:29]} {[%emt 00:00:59]} 25. f5 {[%clk 00:10:02]} {[%emt 00:00:26]}
Ba6 {[%clk 00:07:27]} {[%emt 00:01:12]} 26. fxg6 {[%clk 00:10:00]} {[%emt
00:00:11]} Rf8 {[%clk 00:06:33]} {[%emt 00:01:04]} 27. gxh7+ {[%clk 00:10:04]}
{[%emt 00:00:07]} Kh8 {[%clk 00:06:29]} {[%emt 00:00:09]} 28. Rxg7 {[%clk
00:10:06]} {[%emt 00:00:12]} Qxh6 {[%emt 00:01:24]} 29. Rxc7 {[%clk 00:09:16]}
{[%emt 00:00:46]} Qh1+ {[%clk 00:04:04]} {[%emt 00:01:35]} 30. Rg1 {[%clk
00:09:17]} {[%emt 00:00:08]} Qxg1+ {[%clk 00:03:54]} {[%emt 00:00:22]} 31. Nxg1
{[%clk 00:09:21]} {[%emt 00:00:05]} Rxf2 {[%clk 00:03:39]} {[%emt 00:00:25]} 32.
Nh3 {[%clk 00:09:26]} {[%emt 00:00:05]} Rf3 {[%clk 00:03:45]} {[%emt 00:00:04]}
33. Ng5 {[%clk 00:09:25]} Rxd3 {[%clk 00:03:24]} {[%emt 00:00:42]} 34. Rxa7
{[%clk 00:09:26]} {[%emt 00:00:10]} Bxc4 {[%clk 00:03:28]} {[%emt 00:00:05]} 35.
Ra8+ {[%clk 00:09:31]} {[%emt 00:00:05]} Kg7 {[%clk 00:03:34]} {[%emt
00:00:04]} 36. h8=Q+ {[%emt 00:00:05]} Kg6 {[%emt 00:00:03]} 37. Rg8# {[%emt
00:00:19]} 1-0